[Event "Early-Titled-Tuesday-Blitz-March-05-2024"]
[Site "Chess.com"]
[Date "2024.03.05"]
[Round "2"]
[White "WindWhistler11"]
[Black "RianKapriaga"]
[Result "1-0"]
[WhiteElo "2515"]
[BlackElo "2300"]
[TimeControl "180+1"]
[EndTime "8:18:22 PST"]
[Termination "WindWhistler11 won on time"]

1. Nf3 {[%clk 0:03:00.9]} 1... Nf6 {[%clk 0:02:54.4]} 2. c4 {[%clk 0:03:00.3]}
2... e6 {[%clk 0:02:52.4]} 3. e3 {[%clk 0:02:59.1]} 3... b6 {[%clk 0:02:51]} 4.
b3 {[%clk 0:02:59.3]} 4... Bb7 {[%clk 0:02:51]} 5. Bb2 {[%clk 0:02:59.5]} 5...
Be7 {[%clk 0:02:49.7]} 6. g3 {[%clk 0:02:59.3]} 6... O-O {[%clk 0:02:48.7]} 7.
Bg2 {[%clk 0:02:59.9]} 7... c5 {[%clk 0:02:47.1]} 8. O-O {[%clk 0:03:00.5]} 8...
d6 {[%clk 0:02:40.7]} 9. Nc3 {[%clk 0:03:00.2]} 9... Nbd7 {[%clk 0:02:39.7]} 10.
Ne2 {[%clk 0:02:59.4]} 10... Rc8 {[%clk 0:02:33.4]} 11. Rc1 {[%clk 0:02:47.5]}
11... Qc7 {[%clk 0:02:32.3]} 12. h3 {[%clk 0:02:39]} 12... Qb8 {[%clk
0:02:31.8]} 13. g4 {[%clk 0:02:35.8]} 13... Qa8 {[%clk 0:02:28]} 14. Ng3 {[%clk
0:02:36.2]} 14... h6 {[%clk 0:02:20.1]} 15. d3 {[%clk 0:02:29.6]} 15... a6
{[%clk 0:02:17.8]} 16. Qe2 {[%clk 0:02:28.7]} 16... b5 {[%clk 0:02:16.5]} 17. e4
{[%clk 0:02:25.5]} 17... Rfd8 {[%clk 0:02:07.1]} 18. Nd2 {[%clk 0:02:21.4]}
18... d5 {[%clk 0:01:32.2]} 19. h4 {[%clk 0:01:43.9]} 19... bxc4 {[%clk
0:01:17.8]} 20. bxc4 {[%clk 0:01:38.7]} 20... d4 {[%clk 0:00:57]} 21. g5 {[%clk
0:01:30.6]} 21... hxg5 {[%clk 0:00:55.4]} 22. hxg5 {[%clk 0:01:31.5]} 22... Nh7
{[%clk 0:00:53.3]} 23. f4 {[%clk 0:01:31.3]} 23... Nhf8 {[%clk 0:00:51]} 24. Nf3
{[%clk 0:01:15.4]} 24... Bc6 {[%clk 0:00:45.4]} 25. Rc2 {[%clk 0:01:10.9]} 25...
Rb8 {[%clk 0:00:42.1]} 26. Bc1 {[%clk 0:01:09]} 26... Rb1 {[%clk 0:00:38.8]} 27.
Nd2 {[%clk 0:00:57.8]} 27... Ra1 {[%clk 0:00:29]} 28. Qh5 {[%clk 0:00:56.9]}
28... Rb8 {[%clk 0:00:19.2]} 29. Nb3 {[%clk 0:00:56.2]} 29... Rxa2 {[%clk
0:00:14.7]} 30. Rxa2 {[%clk 0:00:54.8]} 30... Rxb3 {[%clk 0:00:15.4]} 31. Bf3
{[%clk 0:00:54]} 31... Ng6 {[%clk 0:00:12.2]} 32. Rh2 {[%clk 0:00:51.3]} 32...
Bd6 {[%clk 0:00:09.4]} 33. Nf5 {[%clk 0:00:42.2]} 33... exf5 {[%clk 0:00:08.3]}
34. exf5 {[%clk 0:00:38.7]} 34... Bxf3 {[%clk 0:00:08.2]} 35. Rxf3 {[%clk
0:00:39.2]} 35... Kf8 {[%clk 0:00:03.2]} 36. fxg6 {[%clk 0:00:34.5]} 36... Rb1
{[%clk 0:00:03]} 37. Qh8+ {[%clk 0:00:33.4]} 37... Ke7 {[%clk 0:00:02.7]} 38.
Re2+ {[%clk 0:00:32.5]} 38... Ne5 {[%clk 0:00:01]} 39. Qxa8 {[%clk 0:00:32.6]}
1-0

[Event "Early-Titled-Tuesday-Blitz-March-05-2024"]
[Site "Chess.com"]
[Date "2024.03.05"]
[Round "2"]
[White "sotochess"]
[Black "FairChess_on_YouTube"]
[Result "0-1"]
[WhiteElo "2632"]
[BlackElo "3106"]
[TimeControl "180+1"]
[EndTime "8:18:27 PST"]
[Termination "FairChess_on_YouTube won by resignation"]

1. e4 {[%clk 0:02:59.8]} 1... c5 {[%clk 0:02:55.7]} 2. Nf3 {[%clk 0:02:58.7]}
2... e6 {[%clk 0:02:56]} 3. d4 {[%clk 0:02:54.8]} 3... cxd4 {[%clk 0:02:56.9]}
4. Nxd4 {[%clk 0:02:55.2]} 4... Nc6 {[%clk 0:02:57.2]} 5. Nb5 {[%clk 0:02:54]}
5... d6 {[%clk 0:02:55.5]} 6. Bf4 {[%clk 0:02:53.7]} 6... e5 {[%clk 0:02:54.5]}
7. Be3 {[%clk 0:02:53.8]} 7... Nf6 {[%clk 0:02:52.5]} 8. N1c3 {[%clk 0:02:51.2]}
8... a6 {[%clk 0:02:52.5]} 9. Na3 {[%clk 0:02:50.8]} 9... b5 {[%clk 0:02:49.5]}
10. Nd5 {[%clk 0:02:49]} 10... Nxd5 {[%clk 0:02:47]} 11. exd5 {[%clk 0:02:48.9]}
11... Ne7 {[%clk 0:02:47.1]} 12. c4 {[%clk 0:02:48.8]} 12... Nf5 {[%clk
0:02:39.6]} 13. Bd2 {[%clk 0:02:34.5]} 13... Be7 {[%clk 0:02:25.4]} 14. cxb5
{[%clk 0:02:28]} 14... O-O {[%clk 0:02:25.5]} 15. Be2 {[%clk 0:02:27.4]} 15...
e4 {[%clk 0:02:18.1]} 16. O-O {[%clk 0:02:18.6]} 16... Bf6 {[%clk 0:02:18.4]}
17. Bc3 {[%clk 0:02:10.3]} 17... e3 {[%clk 0:02:08.1]} 18. bxa6 {[%clk
0:01:57.3]} 18... Re8 {[%clk 0:02:07.3]} 19. Bxf6 {[%clk 0:01:42.1]} 19... Qxf6
{[%clk 0:02:05.3]} 20. Nc4 {[%clk 0:01:41.7]} 20... Bxa6 {[%clk 0:01:55.4]} 21.
Nxe3 {[%clk 0:01:35.4]} 21... Nxe3 {[%clk 0:01:51.7]} 22. fxe3 {[%clk
0:01:34.9]} 22... Qxb2 {[%clk 0:01:52.1]} 23. Bxa6 {[%clk 0:01:32.3]} 23... Rxa6
{[%clk 0:01:53]} 24. Qf3 {[%clk 0:01:27.9]} 24... Ra7 {[%clk 0:01:43.3]} 25. Kh1
{[%clk 0:01:16.8]} 25... g6 {[%clk 0:01:39.8]} 26. Qf4 {[%clk 0:01:10.5]} 26...
Qe5 {[%clk 0:01:36.3]} 27. a4 {[%clk 0:00:54.8]} 27... Qxf4 {[%clk 0:01:26.6]}
28. exf4 {[%clk 0:00:53.2]} 28... Ra5 {[%clk 0:01:25.8]} 29. f5 {[%clk
0:00:48.8]} 29... Re4 {[%clk 0:01:22.4]} 30. fxg6 {[%clk 0:00:48.2]} 30... hxg6
{[%clk 0:01:22.3]} 31. h3 {[%clk 0:00:43.3]} 31... Rexa4 {[%clk 0:01:15.9]} 32.
Rae1 {[%clk 0:00:22.7]} 32... Rxd5 {[%clk 0:01:10.5]} 33. Re7 {[%clk 0:00:21.6]}
33... Rf5 {[%clk 0:01:07.3]} 34. Rxf5 {[%clk 0:00:21.4]} 34... gxf5 {[%clk
0:01:08.2]} 35. Rd7 {[%clk 0:00:21.7]} 35... Rd4 {[%clk 0:01:07]} 36. Kg1 {[%clk
0:00:21.4]} 36... Rd2 {[%clk 0:01:06.7]} 37. Kh2 {[%clk 0:00:20.5]} 37... f4
{[%clk 0:01:05.2]} 38. Kg1 {[%clk 0:00:19.7]} 38... Kg7 {[%clk 0:01:05.1]} 39.
Ra7 {[%clk 0:00:19.4]} 39... Kf6 {[%clk 0:01:04.6]} 40. Ra5 {[%clk 0:00:19.1]}
40... d5 {[%clk 0:01:04]} 41. Kf1 {[%clk 0:00:13.4]} 41... Kf5 {[%clk
0:01:01.7]} 42. Ra7 {[%clk 0:00:12.8]} 42... f6 {[%clk 0:01:02.1]} 43. Ra8
{[%clk 0:00:04.4]} 43... d4 {[%clk 0:01:02.2]} 44. Re8 {[%clk 0:00:04.2]} 44...
d3 {[%clk 0:00:59.4]} 45. Re7 {[%clk 0:00:03.7]} 45... f3 {[%clk 0:00:57.9]} 46.
g3 {[%clk 0:00:02.2]} 46... Re2 {[%clk 0:00:56.4]} 47. Rd7 {[%clk 0:00:01.9]}
47... d2 {[%clk 0:00:56.5]} 48. Rd3 {[%clk 0:00:01.6]} 48... Re1+ {[%clk
0:00:56.2]} 49. Kf2 {[%clk 0:00:02.5]} 49... d1=Q {[%clk 0:00:57.1]} 50. Rxf3+
{[%clk 0:00:02.4]} 50... Qxf3+ {[%clk 0:00:55.5]} 51. Kxf3 {[%clk 0:00:02.4]}
51... Ra1 {[%clk 0:00:55.7]} 52. Kg2 {[%clk 0:00:03.3]} 52... Ke4 {[%clk
0:00:55.9]} 0-1

[Event "Early-Titled-Tuesday-Blitz-March-05-2024"]
[Site "Chess.com"]
[Date "2024.03.05"]
[Round "2"]
[White "stollenmonster"]
[Black "Yeritsyaan"]
[Result "1-0"]
[WhiteElo "2902"]
[BlackElo "2584"]
[TimeControl "180+1"]
[EndTime "8:18:27 PST"]
[Termination "stollenmonster won by resignation"]

1. e4 {[%clk 0:03:00.9]} 1... c5 {[%clk 0:02:56.8]} 2. Nf3 {[%clk 0:02:59.1]}
2... d6 {[%clk 0:02:53.3]} 3. d4 {[%clk 0:02:58.8]} 3... cxd4 {[%clk 0:02:51]}
4. Nxd4 {[%clk 0:02:59.7]} 4... Nf6 {[%clk 0:02:51]} 5. Nc3 {[%clk 0:03:00]}
5... g6 {[%clk 0:02:49.4]} 6. g3 {[%clk 0:02:59.8]} 6... Bg7 {[%clk 0:02:48.3]}
7. Bg2 {[%clk 0:03:00.1]} 7... O-O {[%clk 0:02:49]} 8. h3 {[%clk 0:03:00.7]}
8... a6 {[%clk 0:02:44.3]} 9. a4 {[%clk 0:03:00.3]} 9... Nc6 {[%clk 0:02:41.5]}
10. Nde2 {[%clk 0:03:00.6]} 10... Bd7 {[%clk 0:02:35.4]} 11. Nd5 {[%clk
0:03:00.4]} 11... Nxd5 {[%clk 0:02:31.2]} 12. exd5 {[%clk 0:03:01.3]} 12... Ne5
{[%clk 0:02:29.3]} 13. Ra2 {[%clk 0:03:01]} 13... Rc8 {[%clk 0:02:24.4]} 14. b3
{[%clk 0:03:01.1]} 14... f5 {[%clk 0:02:11.3]} 15. a5 {[%clk 0:02:59.4]} 15...
Qc7 {[%clk 0:02:07.8]} 16. Be3 {[%clk 0:02:59]} 16... e6 {[%clk 0:01:58.8]} 17.
O-O {[%clk 0:02:52.1]} 17... Kh8 {[%clk 0:01:56.8]} 18. dxe6 {[%clk 0:02:45.9]}
18... Bxe6 {[%clk 0:01:57.7]} 19. Nf4 {[%clk 0:02:45.8]} 19... Bf7 {[%clk
0:01:57.2]} 20. c4 {[%clk 0:02:46.4]} 20... Nc6 {[%clk 0:01:42]} 21. Bb6 {[%clk
0:02:44.7]} 21... Qd7 {[%clk 0:01:41.6]} 22. Rd2 {[%clk 0:02:41.7]} 22... Be5
{[%clk 0:01:38.9]} 23. Nd5 {[%clk 0:02:27.7]} 23... Ne7 {[%clk 0:01:35.4]} 24.
Bd4 {[%clk 0:02:11.4]} 24... Nxd5 {[%clk 0:01:30.7]} 25. Bxe5+ {[%clk
0:02:06.2]} 25... dxe5 {[%clk 0:01:31.6]} 26. Bxd5 {[%clk 0:02:06.3]} 26... Qe7
{[%clk 0:01:30.3]} 27. Re1 {[%clk 0:02:00.6]} 27... e4 {[%clk 0:01:27.8]} 28.
Bxf7 {[%clk 0:02:00.4]} 28... Rxf7 {[%clk 0:01:26.4]} 29. Rd6 {[%clk 0:01:54.1]}
29... Kg8 {[%clk 0:01:23.9]} 30. Qd5 {[%clk 0:01:52.3]} 30... Kg7 {[%clk
0:01:19.7]} 31. Rd1 {[%clk 0:01:41.9]} 31... Rc7 {[%clk 0:01:20]} 32. Qd4+
{[%clk 0:01:35.8]} 32... Rf6 {[%clk 0:01:04.4]} 33. c5 {[%clk 0:01:35.7]} 33...
g5 {[%clk 0:00:48.5]} 34. b4 {[%clk 0:01:30.8]} 34... Kg6 {[%clk 0:00:47.9]} 35.
g4 {[%clk 0:01:16.8]} 35... Rc6 {[%clk 0:00:34.2]} 36. Qd5 {[%clk 0:01:03.3]}
36... Rcxd6 {[%clk 0:00:31.6]} 37. cxd6 {[%clk 0:01:03.1]} 37... Qd7 {[%clk
0:00:31.1]} 38. Qg8+ {[%clk 0:00:57.7]} 38... Kh6 {[%clk 0:00:29.5]} 39. h4
{[%clk 0:00:57.9]} 39... Rg6 {[%clk 0:00:19.3]} 40. Qf8+ {[%clk 0:00:56]} 40...
Rg7 {[%clk 0:00:18]} 41. hxg5+ {[%clk 0:00:54]} 41... Kg6 {[%clk 0:00:16.5]} 42.
Qxf5+ {[%clk 0:00:48.5]} 42... Qxf5 {[%clk 0:00:11.2]} 43. gxf5+ {[%clk
0:00:49]} 43... Kxf5 {[%clk 0:00:11.5]} 44. d7 {[%clk 0:00:48.9]} 44... Rxg5+
{[%clk 0:00:10.9]} 45. Kh2 {[%clk 0:00:45.3]} 45... Rh5+ {[%clk 0:00:09.9]} 46.
Kg3 {[%clk 0:00:45.3]} 46... Rg5+ {[%clk 0:00:10.6]} 47. Kh4 {[%clk 0:00:45.4]}
47... Rg4+ {[%clk 0:00:10.4]} 48. Kh5 {[%clk 0:00:45.6]} 48... Rg2 {[%clk
0:00:09.4]} 49. Kh6 {[%clk 0:00:42.1]} 49... Rh2+ {[%clk 0:00:02.5]} 50. Kg7
{[%clk 0:00:42.3]} 1-0

[Event "Early-Titled-Tuesday-Blitz-March-05-2024"]
[Site "Chess.com"]
[Date "2024.03.05"]
[Round "2"]
[White "Arteler"]
[Black "campochess"]
[Result "0-1"]
[WhiteElo "2462"]
[BlackElo "2226"]
[TimeControl "180+1"]
[EndTime "8:18:28 PST"]
[Termination "campochess won on time"]

1. Nf3 {[%clk 0:02:54.1]} 1... c5 {[%clk 0:02:59.8]} 2. c4 {[%clk 0:02:51.6]}
2... Nc6 {[%clk 0:02:59.5]} 3. Nc3 {[%clk 0:02:46.5]} 3... g6 {[%clk 0:02:58.5]}
4. g3 {[%clk 0:02:43.8]} 4... Bg7 {[%clk 0:02:58.4]} 5. Bg2 {[%clk 0:02:43.4]}
5... d6 {[%clk 0:02:58]} 6. O-O {[%clk 0:02:43]} 6... Nf6 {[%clk 0:02:58]} 7. e3
{[%clk 0:02:43.1]} 7... O-O {[%clk 0:02:57.6]} 8. d4 {[%clk 0:02:42.7]} 8...
cxd4 {[%clk 0:02:57.7]} 9. exd4 {[%clk 0:02:43.6]} 9... Bg4 {[%clk 0:02:57.1]}
10. Be3 {[%clk 0:02:36.6]} 10... Rc8 {[%clk 0:02:55.1]} 11. b3 {[%clk
0:02:26.4]} 11... a6 {[%clk 0:02:53.6]} 12. Rc1 {[%clk 0:02:23.8]} 12... Nd7
{[%clk 0:02:49.6]} 13. h3 {[%clk 0:02:22.2]} 13... Bxf3 {[%clk 0:02:48.2]} 14.
Bxf3 {[%clk 0:02:20.4]} 14... e5 {[%clk 0:02:48.1]} 15. d5 {[%clk 0:02:14.4]}
15... Nd4 {[%clk 0:02:40.4]} 16. Bxd4 {[%clk 0:01:56.9]} 16... exd4 {[%clk
0:02:40.1]} 17. Ne2 {[%clk 0:01:56.3]} 17... Qf6 {[%clk 0:02:39.9]} 18. Bg2
{[%clk 0:01:55.5]} 18... Nc5 {[%clk 0:02:39.8]} 19. Qd2 {[%clk 0:01:41.2]} 19...
Rfe8 {[%clk 0:02:34.5]} 20. Rfd1 {[%clk 0:01:39.8]} 20... d3 {[%clk 0:02:29.4]}
21. Nf4 {[%clk 0:01:29.1]} 21... Bh6 {[%clk 0:02:24.4]} 22. Qc3 {[%clk
0:01:16.8]} 22... Qf5 {[%clk 0:02:12.9]} 23. b4 {[%clk 0:00:51.2]} 23... Bg7
{[%clk 0:01:54.1]} 24. Qa3 {[%clk 0:00:39.4]} 24... g5 {[%clk 0:01:47.3]} 25.
Nxd3 {[%clk 0:00:30.8]} 25... Re2 {[%clk 0:01:37.4]} 26. bxc5 {[%clk 0:00:19]}
26... Rxc5 {[%clk 0:01:27.4]} 27. Qb3 {[%clk 0:00:15.3]} 27... Bd4 {[%clk
0:01:20.3]} 28. Rc2 {[%clk 0:00:14.5]} 28... Bxf2+ {[%clk 0:01:16.3]} 29. Kh2
{[%clk 0:00:14.2]} 29... Bxg3+ {[%clk 0:00:37.6]} 30. Kxg3 {[%clk 0:00:10.6]}
30... Re3+ {[%clk 0:00:37.4]} 31. Kh2 {[%clk 0:00:09.5]} 31... g4 {[%clk
0:00:35.1]} 32. hxg4 {[%clk 0:00:04.8]} 32... Qg5 {[%clk 0:00:32.2]} 33. Rf1
{[%clk 0:00:03.2]} 33... Qh4+ {[%clk 0:00:31.8]} 34. Kg1 {[%clk 0:00:03.1]}
34... Qg3 {[%clk 0:00:25.4]} 35. Qxb7 {[%clk 0:00:02.9]} 35... f5 {[%clk
0:00:18.3]} 36. Qc8+ {[%clk 0:00:01.2]} 36... Kg7 {[%clk 0:00:16.8]} 0-1

[Event "Early-Titled-Tuesday-Blitz-March-05-2024"]
[Site "Chess.com"]
[Date "2024.03.05"]
[Round "2"]
[White "lucasran"]
[Black "Fandorine"]
[Result "0-1"]
[WhiteElo "2599"]
[BlackElo "2936"]
[TimeControl "180+1"]
[EndTime "8:18:30 PST"]
[Termination "Fandorine won on time"]

1. Nf3 {[%clk 0:02:57.2]} 1... Nf6 {[%clk 0:02:59.2]} 2. c4 {[%clk 0:02:55.6]}
2... g6 {[%clk 0:02:55.5]} 3. Nc3 {[%clk 0:02:53.6]} 3... Bg7 {[%clk 0:02:55.8]}
4. d4 {[%clk 0:02:52.6]} 4... O-O {[%clk 0:02:54.9]} 5. g3 {[%clk 0:02:53]} 5...
d6 {[%clk 0:02:52.1]} 6. Bg2 {[%clk 0:02:51.5]} 6... c5 {[%clk 0:02:52.5]} 7.
O-O {[%clk 0:02:49.7]} 7... Nc6 {[%clk 0:02:52.4]} 8. dxc5 {[%clk 0:02:50.4]}
8... dxc5 {[%clk 0:02:52.1]} 9. Bf4 {[%clk 0:02:51.1]} 9... Bf5 {[%clk 0:02:50]}
10. Ne5 {[%clk 0:02:51]} 10... Nd4 {[%clk 0:02:47.9]} 11. Bxb7 {[%clk
0:02:35.8]} 11... Rb8 {[%clk 0:02:47]} 12. Nc6 {[%clk 0:02:28.1]} 12... Nxc6
{[%clk 0:02:28.1]} 13. Bxc6 {[%clk 0:02:14.1]} 13... Rxb2 {[%clk 0:02:27.5]} 14.
Qa4 {[%clk 0:02:07]} 14... Qb6 {[%clk 0:01:39.9]} 15. Nd5 {[%clk 0:01:07.1]}
15... Nxd5 {[%clk 0:01:38.8]} 16. cxd5 {[%clk 0:01:08]} 16... Rxe2 {[%clk
0:01:20.6]} 17. Rae1 {[%clk 0:01:04.6]} 17... Bd3 {[%clk 0:01:01]} 18. Rxe2
{[%clk 0:01:02.2]} 18... Bxe2 {[%clk 0:01:01.9]} 19. Re1 {[%clk 0:01:02.6]}
19... Bd3 {[%clk 0:00:55.2]} 20. Qb3 {[%clk 0:00:54.8]} 20... Qa6 {[%clk
0:00:28]} 21. Qb7 {[%clk 0:00:13.8]} 21... Qxa2 {[%clk 0:00:16.7]} 22. Qxe7
{[%clk 0:00:13.8]} 22... Bd4 {[%clk 0:00:15]} 23. Be3 {[%clk 0:00:13]} 23...
Bxe3 {[%clk 0:00:13.3]} 24. Qxe3 {[%clk 0:00:10.6]} 24... c4 {[%clk 0:00:13.8]}
25. d6 {[%clk 0:00:08.7]} 25... Qa5 {[%clk 0:00:14.2]} 26. d7 {[%clk 0:00:08.9]}
26... Bf5 {[%clk 0:00:14.4]} 27. Qe8 {[%clk 0:00:08.8]} 27... Bxd7 {[%clk
0:00:13.5]} 28. Bxd7 {[%clk 0:00:03.5]} 28... Rxe8 {[%clk 0:00:13.9]} 29. Rxe8+
{[%clk 0:00:03.9]} 29... Kg7 {[%clk 0:00:14.6]} 30. Rc8 {[%clk 0:00:04.2]} 30...
Qd5 {[%clk 0:00:12.9]} 31. Bc6 {[%clk 0:00:03.1]} 31... Qe6 {[%clk 0:00:10.6]}
32. Bb7 {[%clk 0:00:02.6]} 32... a5 {[%clk 0:00:09.5]} 33. Rc7 {[%clk
0:00:01.2]} 33... Qb6 {[%clk 0:00:09.3]} 34. Rc8 {[%clk 0:00:01.8]} 34... Qxb7
{[%clk 0:00:09.5]} 0-1

[Event "Early-Titled-Tuesday-Blitz-March-05-2024"]
[Site "Chess.com"]
[Date "2024.03.05"]
[Round "2"]
[White "guillembaches"]
[Black "martinmena"]
[Result "1-0"]
[WhiteElo "2527"]
[BlackElo "2318"]
[TimeControl "180+1"]
[EndTime "8:18:32 PST"]
[Termination "guillembaches won by checkmate"]

1. Nf3 {[%clk 0:03:00.9]} 1... d5 {[%clk 0:02:59]} 2. d4 {[%clk 0:03:01.1]} 2...
Nf6 {[%clk 0:02:56.7]} 3. c4 {[%clk 0:03:01.3]} 3... e6 {[%clk 0:02:53.8]} 4.
cxd5 {[%clk 0:03:00.8]} 4... exd5 {[%clk 0:02:53.2]} 5. Qc2 {[%clk 0:03:01.4]}
5... Nbd7 {[%clk 0:02:48.9]} 6. Nc3 {[%clk 0:02:55]} 6... c6 {[%clk 0:02:48.8]}
7. Bg5 {[%clk 0:02:52.5]} 7... Be7 {[%clk 0:02:49]} 8. e3 {[%clk 0:02:52.6]}
8... O-O {[%clk 0:02:49.1]} 9. Bd3 {[%clk 0:02:52.8]} 9... Re8 {[%clk
0:02:48.9]} 10. O-O {[%clk 0:02:52.9]} 10... Nf8 {[%clk 0:02:49.6]} 11. h3
{[%clk 0:02:52.3]} 11... g6 {[%clk 0:02:37.2]} 12. Bf4 {[%clk 0:02:47.2]} 12...
Ne6 {[%clk 0:02:33.8]} 13. Bh2 {[%clk 0:02:46.9]} 13... Ng7 {[%clk 0:02:33.7]}
14. Ne5 {[%clk 0:02:45.4]} 14... Bf5 {[%clk 0:02:28.7]} 15. Rae1 {[%clk
0:02:39.7]} 15... Bxd3 {[%clk 0:02:16.6]} 16. Nxd3 {[%clk 0:02:39.6]} 16... Bd6
{[%clk 0:02:12.4]} 17. Bxd6 {[%clk 0:02:36.9]} 17... Qxd6 {[%clk 0:02:13.3]} 18.
b4 {[%clk 0:02:33.8]} 18... Ne4 {[%clk 0:02:06.7]} 19. Nc5 {[%clk 0:02:28]}
19... f5 {[%clk 0:01:52.6]} 20. Nxb7 {[%clk 0:02:15.7]} 20... Qxb4 {[%clk
0:01:48.8]} 21. Nxe4 {[%clk 0:02:15.2]} 21... fxe4 {[%clk 0:01:47.1]} 22. Qxc6
{[%clk 0:02:08.9]} 22... Qc4 {[%clk 0:01:07.2]} 23. Qxc4 {[%clk 0:01:56.4]}
23... dxc4 {[%clk 0:01:08.1]} 24. Nd6 {[%clk 0:01:56.5]} 24... Re6 {[%clk
0:01:05.9]} 25. Nxc4 {[%clk 0:01:55.4]} 25... Ra6 {[%clk 0:01:02.9]} 26. Re2
{[%clk 0:01:53.7]} 26... Rc8 {[%clk 0:01:02.1]} 27. Rc1 {[%clk 0:01:27.3]} 27...
Nf5 {[%clk 0:00:44.6]} 28. Rec2 {[%clk 0:01:22.5]} 28... Ra4 {[%clk 0:00:23.1]}
29. Kf1 {[%clk 0:01:06.4]} 29... Rb8 {[%clk 0:00:18.4]} 30. Ke2 {[%clk
0:00:59.6]} 30... Rb5 {[%clk 0:00:17.7]} 31. Nd2 {[%clk 0:00:49.2]} 31... Rba5
{[%clk 0:00:15.2]} 32. Nxe4 {[%clk 0:00:44.6]} 32... Rxa2 {[%clk 0:00:15]} 33.
g4 {[%clk 0:00:41.4]} 33... Ne7 {[%clk 0:00:11.5]} 34. Kf3 {[%clk 0:00:38.4]}
34... Rxc2 {[%clk 0:00:09.5]} 35. Rxc2 {[%clk 0:00:38.7]} 35... Nd5 {[%clk
0:00:09]} 36. Rc5 {[%clk 0:00:37.6]} 36... Rxc5 {[%clk 0:00:08.3]} 37. Nxc5
{[%clk 0:00:38]} 37... a5 {[%clk 0:00:08.2]} 38. Ke4 {[%clk 0:00:37.8]} 38...
Nc3+ {[%clk 0:00:05.3]} 39. Ke5 {[%clk 0:00:37.7]} 39... a4 {[%clk 0:00:04.3]}
40. Ke6 {[%clk 0:00:36.9]} 40... Kf8 {[%clk 0:00:03.7]} 41. d5 {[%clk
0:00:34.5]} 41... Ke8 {[%clk 0:00:02]} 42. d6 {[%clk 0:00:34.3]} 42... a3 {[%clk
0:00:02]} 43. d7+ {[%clk 0:00:33.7]} 43... Kd8 {[%clk 0:00:02.5]} 44. Kd6 {[%clk
0:00:27.3]} 44... Ne4+ {[%clk 0:00:01.3]} 45. Nxe4 {[%clk 0:00:26.2]} 45... a2
{[%clk 0:00:02.2]} 46. Nc5 {[%clk 0:00:26.2]} 46... a1=Q {[%clk 0:00:02.6]} 47.
Ne6# {[%clk 0:00:26.7]} 1-0

[Event "Early-Titled-Tuesday-Blitz-March-05-2024"]
[Site "Chess.com"]
[Date "2024.03.05"]
[Round "2"]
[White "Nemegejas"]
[Black "ExtremeLearner"]
[Result "1-0"]
[WhiteElo "2789"]
[BlackElo "2536"]
[TimeControl "180+1"]
[EndTime "8:18:33 PST"]
[Termination "Nemegejas won on time"]

1. d4 {[%clk 0:03:00.9]} 1... Nf6 {[%clk 0:02:58.9]} 2. c4 {[%clk 0:03:01.1]}
2... c5 {[%clk 0:02:52.8]} 3. d5 {[%clk 0:03:00.6]} 3... b5 {[%clk 0:02:53.3]}
4. cxb5 {[%clk 0:03:01]} 4... a6 {[%clk 0:02:53.7]} 5. e3 {[%clk 0:03:01.6]}
5... g6 {[%clk 0:02:33.5]} 6. Nc3 {[%clk 0:03:01.4]} 6... Bg7 {[%clk 0:02:34]}
7. Nf3 {[%clk 0:03:02]} 7... O-O {[%clk 0:02:31.4]} 8. a4 {[%clk 0:03:02.3]}
8... Bb7 {[%clk 0:02:15.7]} 9. e4 {[%clk 0:02:18]} 9... e6 {[%clk 0:01:57.2]}
10. dxe6 {[%clk 0:01:48.5]} 10... fxe6 {[%clk 0:01:50.5]} 11. e5 {[%clk
0:01:34.5]} 11... Ng4 {[%clk 0:01:41.7]} 12. Be2 {[%clk 0:01:23.8]} 12... Nxe5
{[%clk 0:01:23.6]} 13. Nxe5 {[%clk 0:01:18.4]} 13... Bxe5 {[%clk 0:01:24.5]} 14.
O-O {[%clk 0:01:13.3]} 14... axb5 {[%clk 0:00:37.5]} 15. Nxb5 {[%clk 0:01:06.6]}
15... d5 {[%clk 0:00:36.8]} 16. Bg4 {[%clk 0:01:04.1]} 16... Qf6 {[%clk
0:00:23.8]} 17. f4 {[%clk 0:00:41.6]} 17... Bd4+ {[%clk 0:00:11.9]} 18. Nxd4
{[%clk 0:00:41]} 18... cxd4 {[%clk 0:00:12.8]} 19. Re1 {[%clk 0:00:40.3]} 19...
Re8 {[%clk 0:00:12.7]} 20. b4 {[%clk 0:00:36.8]} 20... Nc6 {[%clk 0:00:11.1]}
21. b5 {[%clk 0:00:37.1]} 21... Na5 {[%clk 0:00:10.3]} 22. Bb2 {[%clk
0:00:34.6]} 22... Qxf4 {[%clk 0:00:08.8]} 23. Bxe6+ {[%clk 0:00:32.3]} 23...
Rxe6 {[%clk 0:00:08.9]} 24. Rxe6 {[%clk 0:00:33.2]} 24... Rf8 {[%clk 0:00:06.7]}
25. Qxd4 {[%clk 0:00:32]} 25... Qxd4+ {[%clk 0:00:05.2]} 26. Bxd4 {[%clk
0:00:32]} 26... Nb3 {[%clk 0:00:05.4]} 27. Rd1 {[%clk 0:00:31.6]} 27... Bc8
{[%clk 0:00:06]} 28. Re7 {[%clk 0:00:30.5]} 28... Bg4 {[%clk 0:00:04.9]} 29.
Rg7+ {[%clk 0:00:30.1]} 29... Kh8 {[%clk 0:00:04.4]} 30. Rxg6+ {[%clk
0:00:29.2]} 30... Nxd4 {[%clk 0:00:05.1]} 31. Rxg4 {[%clk 0:00:29.9]} 31... Ne2+
{[%clk 0:00:05.5]} 32. Kh1 {[%clk 0:00:30.1]} 32... d4 {[%clk 0:00:05.8]} 33. h3
{[%clk 0:00:29.2]} 33... Rd8 {[%clk 0:00:02.3]} 34. Rd2 {[%clk 0:00:29]} 34...
d3 {[%clk 0:00:02.6]} 35. Kh2 {[%clk 0:00:22.1]} 35... Nc3 {[%clk 0:00:02.4]}
36. Rg3 {[%clk 0:00:22.3]} 36... Ne4 {[%clk 0:00:02.4]} 37. Rgxd3 {[%clk
0:00:21.8]} 37... Rg8 {[%clk 0:00:01.8]} 38. Rd8 {[%clk 0:00:18.9]} 1-0